[Event "*** Titled Tuesday Blitz"]
[Site "Chess.com"]
[Date "2020.05.26"]
[Round "2"]
[White "Koksik_13"]
[Black "Kobalia"]
[Result "1-0"]
[WhiteElo "2535"]
[BlackElo "2798"]
[TimeControl "180+1"]
[EndTime "10:19:06 PDT"]
[Termination "Koksik_13 won on time"]

1. d4 {[%clk 0:03:00.9]} 1... d5 {[%clk 0:02:58.3]} 2. Nc3 {[%clk 0:03:01.4]}
2... Bf5 {[%clk 0:02:56.8]} 3. Bf4 {[%clk 0:03:01.5]} 3... c6 {[%clk 0:02:41.6]}
4. e3 {[%clk 0:03:01]} 4... Nf6 {[%clk 0:02:41.3]} 5. f3 {[%clk 0:03:01.3]} 5...
h6 {[%clk 0:02:40.4]} 6. g4 {[%clk 0:03:01.2]} 6... Bg6 {[%clk 0:02:38.1]} 7. h4
{[%clk 0:03:01.6]} 7... h5 {[%clk 0:02:35.3]} 8. g5 {[%clk 0:03:01.3]} 8... Nfd7
{[%clk 0:02:35.3]} 9. Bd3 {[%clk 0:03:01.8]} 9... Bxd3 {[%clk 0:02:34.2]} 10.
Qxd3 {[%clk 0:03:02.3]} 10... g6 {[%clk 0:02:34.5]} 11. e4 {[%clk 0:02:56.8]}
11... dxe4 {[%clk 0:02:32.1]} 12. fxe4 {[%clk 0:02:57.7]} 12... e5 {[%clk
0:02:24.7]} 13. dxe5 {[%clk 0:02:50.7]} 13... Nc5 {[%clk 0:02:21.9]} 14. Qxd8+
{[%clk 0:02:45.2]} 14... Kxd8 {[%clk 0:02:21.4]} 15. O-O-O+ {[%clk 0:02:45.7]}
15... Kc8 {[%clk 0:02:21.5]} 16. e6 {[%clk 0:02:19.1]} 16... Nxe6 {[%clk
0:02:18.2]} 17. Be5 {[%clk 0:02:19.3]} 17... Rg8 {[%clk 0:02:14.5]} 18. Nf3
{[%clk 0:02:19.4]} 18... Nd7 {[%clk 0:02:14.1]} 19. Rhf1 {[%clk 0:02:18.6]}
19... Be7 {[%clk 0:01:35.7]} 20. Bg3 {[%clk 0:02:15.3]} 20... Rf8 {[%clk
0:01:31.3]} 21. Ne5 {[%clk 0:02:12.9]} 21... Nxe5 {[%clk 0:01:31.2]} 22. Bxe5
{[%clk 0:02:13.8]} 22... b5 {[%clk 0:01:25.4]} 23. Rf3 {[%clk 0:02:06.3]} 23...
a5 {[%clk 0:01:22.2]} 24. Rdf1 {[%clk 0:01:58.8]} 24... Nd8 {[%clk 0:01:21.9]}
25. Bf6 {[%clk 0:01:41.3]} 25... Bxf6 {[%clk 0:01:18.8]} 26. Rxf6 {[%clk
0:01:42.2]} 26... Re8 {[%clk 0:01:19]} 27. Rd1 {[%clk 0:00:43.5]} 27... Ra7
{[%clk 0:01:17.8]} 28. Rfd6 {[%clk 0:00:42.2]} 28... Rc7 {[%clk 0:01:08.7]} 29.
a4 {[%clk 0:00:31.9]} 29... b4 {[%clk 0:01:07.3]} 30. Nb1 {[%clk 0:00:32.1]}
30... Nb7 {[%clk 0:01:06.8]} 31. R6d4 {[%clk 0:00:27.7]} 31... c5 {[%clk
0:00:58.6]} 32. Rd5 {[%clk 0:00:27.9]} 32... Rxe4 {[%clk 0:00:57.6]} 33. Nd2
{[%clk 0:00:28.1]} 33... Rxh4 {[%clk 0:00:51.6]} 34. Nf3 {[%clk 0:00:20.5]}
34... Rf4 {[%clk 0:00:48.6]} 35. Ne5 {[%clk 0:00:20.1]} 35... Rf5 {[%clk
0:00:46.8]} 36. Nc4 {[%clk 0:00:06.2]} 36... Rxd5 {[%clk 0:00:44.3]} 37. Rxd5
{[%clk 0:00:07.1]} 37... Re7 {[%clk 0:00:34.3]} 38. b3 {[%clk 0:00:05.8]} 38...
Kc7 {[%clk 0:00:27.3]} 39. Kb2 {[%clk 0:00:06.1]} 39... h4 {[%clk 0:00:22.1]}
40. Rd3 {[%clk 0:00:05.2]} 40... Re4 {[%clk 0:00:20.5]} 41. Rf3 {[%clk 0:00:04]}
41... Kc6 {[%clk 0:00:16.5]} 42. Rf6+ {[%clk 0:00:02.3]} 42... Re6 {[%clk
0:00:11.3]} 43. Rxf7 {[%clk 0:00:02.3]} 43... Re4 {[%clk 0:00:07.4]} 44. Rh7
{[%clk 0:00:02.8]} 44... Rg4 {[%clk 0:00:06.7]} 45. Nd2 {[%clk 0:00:03.3]} 45...
Rxg5 {[%clk 0:00:05.8]} 46. Rxh4 {[%clk 0:00:02.3]} 46... Nd6 {[%clk 0:00:05.2]}
47. Nc4 {[%clk 0:00:03.2]} 47... Nxc4+ {[%clk 0:00:04.6]} 48. Rxc4 {[%clk
0:00:03.9]} 48... Rg1 {[%clk 0:00:04.3]} 49. Rf4 {[%clk 0:00:04.2]} 49... g5
{[%clk 0:00:04.6]} 50. Rf6+ {[%clk 0:00:05.1]} 50... Kd5 {[%clk 0:00:04.8]} 51.
Ra6 {[%clk 0:00:03.2]} 51... g4 {[%clk 0:00:05]} 52. Rxa5 {[%clk 0:00:03.7]}
52... g3 {[%clk 0:00:05.3]} 53. Ra8 {[%clk 0:00:04.2]} 53... Rf1 {[%clk
0:00:04.2]} 54. Rg8 {[%clk 0:00:04.2]} 54... Rf3 {[%clk 0:00:04.2]} 55. Rg6
{[%clk 0:00:04.6]} 55... Ke4 {[%clk 0:00:03]} 56. a5 {[%clk 0:00:04.5]} 56...
Ke3 {[%clk 0:00:03.3]} 57. a6 {[%clk 0:00:04.8]} 57... Kf2 {[%clk 0:00:03.5]}
58. a7 {[%clk 0:00:03.6]} 58... Rf8 {[%clk 0:00:03.2]} 59. Rf6+ {[%clk 0:00:04]}
59... Rxf6 {[%clk 0:00:02.6]} 60. a8=Q {[%clk 0:00:04.9]} 60... g2 {[%clk
0:00:02.6]} 61. Qd8 {[%clk 0:00:04.1]} 1-0

[Event "*** Titled Tuesday Blitz"]
[Site "Chess.com"]
[Date "2020.05.26"]
[Round "2"]
[White "ameetghasi100"]
[Black "kingnb"]
[Result "1-0"]
[WhiteElo "2714"]
[BlackElo "2477"]
[TimeControl "180+1"]
[EndTime "10:19:10 PDT"]
[Termination "ameetghasi100 won by resignation"]

1. g3 {[%clk 0:03:00.9]} 1... Nf6 {[%clk 0:02:59]} 2. Bg2 {[%clk 0:03:00.6]}
2... g6 {[%clk 0:02:59.9]} 3. d4 {[%clk 0:03:00.7]} 3... Bg7 {[%clk 0:02:59.8]}
4. e4 {[%clk 0:03:00.7]} 4... d6 {[%clk 0:02:59.5]} 5. Ne2 {[%clk 0:03:00.9]}
5... O-O {[%clk 0:02:57.7]} 6. O-O {[%clk 0:03:00.6]} 6... e5 {[%clk 0:02:58.3]}
7. Nbc3 {[%clk 0:02:56.5]} 7... Re8 {[%clk 0:02:56.2]} 8. h3 {[%clk 0:02:55.9]}
8... Bd7 {[%clk 0:02:50]} 9. a4 {[%clk 0:02:55.3]} 9... exd4 {[%clk 0:02:50.1]}
10. Nxd4 {[%clk 0:02:54.9]} 10... Nc6 {[%clk 0:02:51]} 11. Nde2 {[%clk
0:02:51.1]} 11... Qc8 {[%clk 0:02:36]} 12. Kh2 {[%clk 0:02:44.9]} 12... h5
{[%clk 0:02:36.2]} 13. Bg5 {[%clk 0:02:41.6]} 13... Nd8 {[%clk 0:02:34.6]} 14.
Nd4 {[%clk 0:02:16.8]} 14... Nh7 {[%clk 0:02:09.7]} 15. Be3 {[%clk 0:02:05.5]}
15... Ne6 {[%clk 0:02:05.2]} 16. Nxe6 {[%clk 0:02:04.1]} 16... Bxe6 {[%clk
0:01:58.3]} 17. Bd4 {[%clk 0:02:03.3]} 17... Bh6 {[%clk 0:01:56.9]} 18. f4
{[%clk 0:02:00.7]} 18... c6 {[%clk 0:01:43.6]} 19. Qd3 {[%clk 0:01:51.5]} 19...
Nf8 {[%clk 0:00:59.2]} 20. Bf6 {[%clk 0:01:41]} 20... Bg7 {[%clk 0:00:48.2]} 21.
Bxg7 {[%clk 0:01:39.8]} 21... Kxg7 {[%clk 0:00:49.1]} 22. Qxd6 {[%clk
0:01:40.3]} 22... Qd8 {[%clk 0:00:49.3]} 23. Qe5+ {[%clk 0:01:38]} 23... Kg8
{[%clk 0:00:48.6]} 24. Rfd1 {[%clk 0:01:13.7]} 24... Qb6 {[%clk 0:00:47.1]} 25.
Qd4 {[%clk 0:01:08.4]} 25... Red8 {[%clk 0:00:40.2]} 26. Qxb6 {[%clk 0:01:08]}
26... axb6 {[%clk 0:00:41.1]} 27. Rxd8 {[%clk 0:01:07.2]} 27... Rxd8 {[%clk
0:00:42]} 28. Rd1 {[%clk 0:01:07.4]} 28... Rxd1 {[%clk 0:00:31.3]} 29. Nxd1
{[%clk 0:01:08.3]} 29... Nd7 {[%clk 0:00:31.2]} 30. Ne3 {[%clk 0:01:07.2]} 30...
Nc5 {[%clk 0:00:31.3]} 31. b3 {[%clk 0:01:07.4]} 31... Kf8 {[%clk 0:00:31.1]}
32. g4 {[%clk 0:01:03.5]} 32... hxg4 {[%clk 0:00:31.4]} 33. hxg4 {[%clk
0:01:04.4]} 33... Ke7 {[%clk 0:00:31.4]} 34. g5 {[%clk 0:00:56.8]} 34... b5
{[%clk 0:00:15.7]} 35. axb5 {[%clk 0:00:55.3]} 35... cxb5 {[%clk 0:00:16.6]} 36.
Kg3 {[%clk 0:00:53.7]} 36... Bd7 {[%clk 0:00:16.8]} 37. f5 {[%clk 0:00:52.5]}
37... Bc6 {[%clk 0:00:16.9]} 38. Kf4 {[%clk 0:00:52]} 38... Kd7 {[%clk
0:00:16.1]} 39. Ke5 {[%clk 0:00:50.9]} 39... Ke7 {[%clk 0:00:16.6]} 40. Kd4
{[%clk 0:00:48.8]} 40... Nd7 {[%clk 0:00:16.5]} 41. f6+ {[%clk 0:00:48.8]} 41...
Kd6 {[%clk 0:00:16.5]} 42. Ng4 {[%clk 0:00:48.8]} 42... Nf8 {[%clk 0:00:16.1]}
43. e5+ {[%clk 0:00:45.6]} 43... Kd7 {[%clk 0:00:16.6]} 44. Bd5 {[%clk
0:00:34.1]} 44... Bxd5 {[%clk 0:00:15]} 45. Kxd5 {[%clk 0:00:35]} 45... Ne6
{[%clk 0:00:15.4]} 46. Nh6 {[%clk 0:00:33.3]} 46... Nxg5 {[%clk 0:00:15.3]} 47.
b4 {[%clk 0:00:32.3]} 47... b6 {[%clk 0:00:15]} 48. c3 {[%clk 0:00:32.2]} 48...
Ke8 {[%clk 0:00:09.4]} 49. Kc6 {[%clk 0:00:29.1]} 49... Ne4 {[%clk 0:00:09.6]}
50. Kxb5 {[%clk 0:00:23.8]} 50... Nxc3+ {[%clk 0:00:09.1]} 51. Kxb6 {[%clk
0:00:24.3]} 51... Kd7 {[%clk 0:00:07.8]} 52. Nxf7 {[%clk 0:00:23.6]} 52... Ke6
{[%clk 0:00:08.2]} 53. Ng5+ {[%clk 0:00:22.8]} 53... Kxe5 {[%clk 0:00:04.7]} 54.
f7 {[%clk 0:00:22.7]} 54... Nd5+ {[%clk 0:00:05.6]} 55. Kc5 {[%clk 0:00:22.6]}
55... Nf6 {[%clk 0:00:04.5]} 56. b5 {[%clk 0:00:22.2]} 56... Nd7+ {[%clk
0:00:02.5]} 57. Kc6 {[%clk 0:00:22.4]} 57... Nf8 {[%clk 0:00:03.4]} 58. b6
{[%clk 0:00:22.6]} 58... Kf6 {[%clk 0:00:04.3]} 59. b7 {[%clk 0:00:22.6]} 59...
Kxg5 {[%clk 0:00:04.9]} 60. b8=Q {[%clk 0:00:22.7]} 60... Ne6 {[%clk 0:00:05.8]}
1-0

[Event "*** Titled Tuesday Blitz"]
[Site "Chess.com"]
[Date "2020.05.26"]
[Round "2"]
[White "boasovietica"]
[Black "dosto07"]
[Result "1-0"]
[WhiteElo "2391"]
[BlackElo "2093"]
[TimeControl "180+1"]
[EndTime "10:19:11 PDT"]
[Termination "boasovietica won on time"]

1. e4 {[%clk 0:03:00.9]} 1... e5 {[%clk 0:02:58.5]} 2. Nf3 {[%clk 0:02:57.9]}
2... Nc6 {[%clk 0:02:58.4]} 3. Bb5 {[%clk 0:02:57]} 3... a6 {[%clk 0:02:57.6]}
4. Ba4 {[%clk 0:02:56.6]} 4... Nf6 {[%clk 0:02:56.6]} 5. O-O {[%clk 0:02:56.3]}
5... Be7 {[%clk 0:02:56.5]} 6. d3 {[%clk 0:02:53.7]} 6... b5 {[%clk 0:02:55.3]}
7. Bb3 {[%clk 0:02:53]} 7... d6 {[%clk 0:02:55.8]} 8. a3 {[%clk 0:02:49.6]} 8...
Na5 {[%clk 0:02:52.8]} 9. Ba2 {[%clk 0:02:49.2]} 9... Be6 {[%clk 0:02:53.1]} 10.
b4 {[%clk 0:02:22.8]} 10... Bxa2 {[%clk 0:02:35.6]} 11. Rxa2 {[%clk 0:02:23.7]}
11... Nc6 {[%clk 0:02:32.5]} 12. c4 {[%clk 0:02:17.8]} 12... O-O {[%clk
0:02:26.5]} 13. Nc3 {[%clk 0:02:14.3]} 13... Na7 {[%clk 0:01:56.5]} 14. Re1
{[%clk 0:02:05.3]} 14... c6 {[%clk 0:01:44.7]} 15. h3 {[%clk 0:01:52.2]} 15...
Nd7 {[%clk 0:01:43.7]} 16. Be3 {[%clk 0:01:40]} 16... Nc8 {[%clk 0:01:40.1]} 17.
a4 {[%clk 0:01:38.4]} 17... bxa4 {[%clk 0:01:36]} 18. Qxa4 {[%clk 0:01:35.1]}
18... Qc7 {[%clk 0:01:30.6]} 19. Rea1 {[%clk 0:01:22.8]} 19... Qb7 {[%clk
0:01:26]} 20. b5 {[%clk 0:01:10.5]} 20... cxb5 {[%clk 0:01:19.1]} 21. cxb5
{[%clk 0:00:54.2]} 21... a5 {[%clk 0:01:14.6]} 22. Nd5 {[%clk 0:00:49]} 22...
Bd8 {[%clk 0:01:12.6]} 23. Nd2 {[%clk 0:00:45.9]} 23... Ncb6 {[%clk 0:01:10.1]}
24. Nxb6 {[%clk 0:00:38.7]} 24... Nxb6 {[%clk 0:01:09.3]} 25. Qb3 {[%clk
0:00:34.8]} 25... a4 {[%clk 0:01:07]} 26. Qc2 {[%clk 0:00:28.3]} 26... h6 {[%clk
0:01:04.2]} 27. Bxb6 {[%clk 0:00:24.9]} 27... Bxb6 {[%clk 0:01:03.5]} 28. Rxa4
{[%clk 0:00:24.7]} 28... Rxa4 {[%clk 0:00:58.5]} 29. Rxa4 {[%clk 0:00:21.9]}
29... Rc8 {[%clk 0:00:54.5]} 30. Nc4 {[%clk 0:00:21.8]} 30... Bc5 {[%clk
0:00:48]} 31. Qb3 {[%clk 0:00:18.7]} 31... Rb8 {[%clk 0:00:41.2]} 32. b6 {[%clk
0:00:16.7]} 32... Bxb6 {[%clk 0:00:38.1]} 33. Nxb6 {[%clk 0:00:05.8]} 33... Qxb6
{[%clk 0:00:34.8]} 34. Qxb6 {[%clk 0:00:05.9]} 34... Rxb6 {[%clk 0:00:34]} 35.
Ra3 {[%clk 0:00:05.7]} 35... g6 {[%clk 0:00:32.3]} 36. Kf1 {[%clk 0:00:05.7]}
36... Rb2 {[%clk 0:00:29.6]} 37. g3 {[%clk 0:00:04.8]} 37... h5 {[%clk
0:00:28.8]} 38. h4 {[%clk 0:00:04.3]} 38... Kg7 {[%clk 0:00:28.4]} 39. Kg2
{[%clk 0:00:04.6]} 39... Kf6 {[%clk 0:00:27.9]} 40. Kf3 {[%clk 0:00:04.9]} 40...
Ke6 {[%clk 0:00:27.2]} 41. Ke3 {[%clk 0:00:05.1]} 41... f6 {[%clk 0:00:16.9]}
42. Ra8 {[%clk 0:00:04.4]} 42... Rb7 {[%clk 0:00:10.8]} 43. Rg8 {[%clk
0:00:03.2]} 43... Kf7 {[%clk 0:00:10]} 44. Ra8 {[%clk 0:00:02.8]} 44... Ke6
{[%clk 0:00:09.7]} 45. Ra4 {[%clk 0:00:03.1]} 45... Ke7 {[%clk 0:00:08.2]} 46.
Ra8 {[%clk 0:00:03.4]} 46... Kf7 {[%clk 0:00:07.9]} 47. Ra6 {[%clk 0:00:03.8]}
47... Ke7 {[%clk 0:00:07.5]} 48. Rc6 {[%clk 0:00:04.2]} 48... Rd7 {[%clk
0:00:06.5]} 49. Ra6 {[%clk 0:00:04.4]} 49... d5 {[%clk 0:00:06.4]} 50. Rb6
{[%clk 0:00:04.3]} 50... d4+ {[%clk 0:00:06]} 51. Ke2 {[%clk 0:00:04.5]} 51...
Ra7 {[%clk 0:00:06.9]} 52. Rb2 {[%clk 0:00:04.5]} 52... Ra3 {[%clk 0:00:06.6]}
53. Rc2 {[%clk 0:00:04.6]} 53... Ra7 {[%clk 0:00:05.6]} 54. Rb2 {[%clk
0:00:04.9]} 54... Rd7 {[%clk 0:00:06.2]} 55. Rc2 {[%clk 0:00:04.9]} 55... Kf7
{[%clk 0:00:07.1]} 56. Rb2 {[%clk 0:00:05.1]} 56... Kg7 {[%clk 0:00:07.5]} 57.
Rc2 {[%clk 0:00:05.5]} 57... Kh6 {[%clk 0:00:08.4]} 58. Kd2 {[%clk 0:00:05.7]}
58... g5 {[%clk 0:00:09.3]} 59. hxg5+ {[%clk 0:00:05.7]} 59... Kxg5 {[%clk
0:00:08.8]} 60. Ke2 {[%clk 0:00:06.3]} 60... f5 {[%clk 0:00:08.9]} 61. exf5
{[%clk 0:00:06]} 61... Kxf5 {[%clk 0:00:08.6]} 62. Rc8 {[%clk 0:00:05.8]} 62...
Kg4 {[%clk 0:00:08]} 63. Rg8+ {[%clk 0:00:05.5]} 63... Kh3 {[%clk 0:00:07.3]}
64. Rg5 {[%clk 0:00:05.7]} 64... h4 {[%clk 0:00:07]} 65. Rh5 {[%clk 0:00:05.5]}
65... Kg2 {[%clk 0:00:06.4]} 66. gxh4 {[%clk 0:00:05]} 66... Rf7 {[%clk
0:00:06.5]} 67. Rg5+ {[%clk 0:00:05]} 67... Kh3 {[%clk 0:00:03.7]} 68. h5 {[%clk
0:00:05.3]} 68... Kh4 {[%clk 0:00:01.9]} 69. Rxe5 {[%clk 0:00:04.6]} 1-0

[Event "*** Titled Tuesday Blitz"]
[Site "Chess.com"]
[Date "2020.05.26"]
[Round "2"]
[White "Alopekos"]
[Black "TranJMinh"]
[Result "0-1"]
[WhiteElo "2510"]
[BlackElo "2787"]
[TimeControl "180+1"]
[EndTime "10:19:13 PDT"]
[Termination "TranJMinh won on time"]

1. e4 {[%clk 0:03:00.8]} 1... c5 {[%clk 0:02:58.9]} 2. Nc3 {[%clk 0:03:00.2]}
2... d6 {[%clk 0:02:58.8]} 3. Nge2 {[%clk 0:03:00]} 3... Nf6 {[%clk 0:02:58.5]}
4. d4 {[%clk 0:03:00.7]} 4... cxd4 {[%clk 0:02:59.4]} 5. Nxd4 {[%clk 0:03:01]}
5... a6 {[%clk 0:03:00]} 6. Be3 {[%clk 0:03:01.5]} 6... e5 {[%clk 0:03:00.5]} 7.
Nb3 {[%clk 0:03:01.6]} 7... Be7 {[%clk 0:03:01]} 8. Be2 {[%clk 0:02:57.4]} 8...
Be6 {[%clk 0:03:01.1]} 9. Nd5 {[%clk 0:02:57.4]} 9... Nbd7 {[%clk 0:02:59.2]}
10. Nxe7 {[%clk 0:02:51.8]} 10... Qxe7 {[%clk 0:03:00.1]} 11. Bf3 {[%clk
0:02:52.3]} 11... O-O {[%clk 0:02:56.1]} 12. Qd2 {[%clk 0:02:44]} 12... Rac8
{[%clk 0:02:21.8]} 13. Rd1 {[%clk 0:02:22.4]} 13... Nc5 {[%clk 0:02:05.1]} 14.
Nxc5 {[%clk 0:01:33.3]} 14... dxc5 {[%clk 0:02:06]} 15. Qd6 {[%clk 0:01:32.8]}
15... Qxd6 {[%clk 0:01:42.3]} 16. Rxd6 {[%clk 0:01:32.8]} 16... Bxa2 {[%clk
0:01:43.2]} 17. Rb6 {[%clk 0:01:01.8]} 17... Rc7 {[%clk 0:01:28.9]} 18. b3
{[%clk 0:00:53.7]} 18... Nd7 {[%clk 0:01:01]} 19. Rd6 {[%clk 0:00:53.5]} 19...
c4 {[%clk 0:00:59.7]} 20. b4 {[%clk 0:00:45]} 20... c3 {[%clk 0:00:35.6]} 21.
O-O {[%clk 0:00:44.4]} 21... Be6 {[%clk 0:00:35.1]} 22. Rfd1 {[%clk 0:00:40.5]}
22... h6 {[%clk 0:00:34.4]} 23. h3 {[%clk 0:00:37]} 23... Rfc8 {[%clk
0:00:34.8]} 24. Bg4 {[%clk 0:00:32.7]} 24... Bxg4 {[%clk 0:00:32.5]} 25. hxg4
{[%clk 0:00:32.8]} 25... Nf6 {[%clk 0:00:33.4]} 26. f3 {[%clk 0:00:32.9]} 26...
Kf8 {[%clk 0:00:22.3]} 27. g5 {[%clk 0:00:18.2]} 27... hxg5 {[%clk 0:00:20.1]}
28. Bxg5 {[%clk 0:00:18.8]} 28... Ne8 {[%clk 0:00:20.6]} 29. R6d5 {[%clk
0:00:15.9]} 29... f6 {[%clk 0:00:20.4]} 30. Be3 {[%clk 0:00:16.3]} 30... Ke7
{[%clk 0:00:18.9]} 31. Bc5+ {[%clk 0:00:13.5]} 31... Ke6 {[%clk 0:00:19.3]} 32.
R1d3 {[%clk 0:00:12.4]} 32... g6 {[%clk 0:00:17.7]} 33. Kf2 {[%clk 0:00:12.2]}
33... g5 {[%clk 0:00:13.7]} 34. g3 {[%clk 0:00:11]} 34... Rh7 {[%clk 0:00:11.9]}
35. Kg2 {[%clk 0:00:10.9]} 35... Rhc7 {[%clk 0:00:11.3]} 36. Rd8 {[%clk
0:00:10.4]} 36... Rxd8 {[%clk 0:00:08]} 37. Rxd8 {[%clk 0:00:10.9]} 37... Ng7
{[%clk 0:00:08.9]} 38. Rg8 {[%clk 0:00:09]} 38... Kf7 {[%clk 0:00:07.8]} 39.
Rf8+ {[%clk 0:00:09.4]} 39... Kg6 {[%clk 0:00:07.9]} 40. Rg8 {[%clk 0:00:09.5]}
40... Kh7 {[%clk 0:00:06.6]} 41. Rf8 {[%clk 0:00:09.4]} 41... Kg6 {[%clk
0:00:07]} 42. Rg8 {[%clk 0:00:09.8]} 42... Rd7 {[%clk 0:00:06]} 43. Be3 {[%clk
0:00:07.8]} 43... Kf7 {[%clk 0:00:05.3]} 44. Rc8 {[%clk 0:00:07.8]} 44... Ne6
{[%clk 0:00:05.4]} 45. Rxc3 {[%clk 0:00:07.9]} 45... Rd1 {[%clk 0:00:06.3]} 46.
Rd3 {[%clk 0:00:07.4]} 46... Rxd3 {[%clk 0:00:03.7]} 47. cxd3 {[%clk 0:00:07.8]}
47... Ke7 {[%clk 0:00:04.1]} 48. Kf2 {[%clk 0:00:08]} 48... Kd7 {[%clk
0:00:04.5]} 49. Ke2 {[%clk 0:00:08.5]} 49... Kc6 {[%clk 0:00:05.1]} 50. Kd2
{[%clk 0:00:09.1]} 50... Kb5 {[%clk 0:00:02.8]} 51. Kc3 {[%clk 0:00:09.4]} 51...
Nd4 {[%clk 0:00:03.3]} 52. Bxd4 {[%clk 0:00:04.8]} 52... exd4+ {[%clk
0:00:04.2]} 53. Kb3 {[%clk 0:00:04.4]} 53... b6 {[%clk 0:00:02.9]} 54. f4 {[%clk
0:00:04.6]} 54... a5 {[%clk 0:00:02.6]} 55. bxa5 {[%clk 0:00:03.2]} 55... bxa5
{[%clk 0:00:03.5]} 56. e5 {[%clk 0:00:03.5]} 56... gxf4 {[%clk 0:00:03.3]} 57.
e6 {[%clk 0:00:02.5]} 57... Kc6 {[%clk 0:00:02.8]} 58. gxf4 {[%clk 0:00:02.7]}
58... f5 {[%clk 0:00:02.4]} 59. Kc4 {[%clk 0:00:02.7]} 59... Kd6 {[%clk
0:00:02.5]} 60. Kxd4 {[%clk 0:00:02.9]} 60... Kxe6 {[%clk 0:00:03.4]} 61. Kc5
{[%clk 0:00:03.1]} 61... a4 {[%clk 0:00:02.9]} 62. Kb4 {[%clk 0:00:01.6]} 62...
Kd5 {[%clk 0:00:03.8]} 0-1

[Event "*** Titled Tuesday Blitz"]
[Site "Chess.com"]
[Date "2020.05.26"]
[Round "2"]
[White "kingofthenil"]
[Black "DinaBelenkaya"]
[Result "0-1"]
[WhiteElo "2434"]
[BlackElo "2249"]
[TimeControl "180+1"]
[EndTime "10:19:22 PDT"]
[Termination "DinaBelenkaya won by resignation"]

1. e4 {[%clk 0:03:00.9]} 1... d5 {[%clk 0:02:59.1]} 2. exd5 {[%clk 0:03:00]}
2... Qxd5 {[%clk 0:03:00]} 3. Ne2 {[%clk 0:02:57.6]} 3... Nf6 {[%clk 0:02:40.1]}
4. d4 {[%clk 0:02:53.9]} 4... Nc6 {[%clk 0:02:27.4]} 5. Nf4 {[%clk 0:02:48.7]}
5... Qxd4 {[%clk 0:02:13.9]} 6. Bd3 {[%clk 0:02:44.4]} 6... e5 {[%clk
0:01:54.9]} 7. Ne2 {[%clk 0:02:30]} 7... Qh4 {[%clk 0:01:47.7]} 8. h3 {[%clk
0:01:56.3]} 8... Bc5 {[%clk 0:01:31.6]} 9. Ng3 {[%clk 0:01:34.2]} 9... O-O
{[%clk 0:00:57.6]} 10. Nc3 {[%clk 0:01:19.1]} 10... e4 {[%clk 0:00:50.5]} 11.
Ncxe4 {[%clk 0:01:14.7]} 11... Nxe4 {[%clk 0:00:50.5]} 12. Bxe4 {[%clk
0:01:13.5]} 12... Re8 {[%clk 0:00:30]} 13. O-O {[%clk 0:01:09.1]} 13... Qxg3
{[%clk 0:00:27.7]} 14. Bxh7+ {[%clk 0:00:53.5]} 14... Kxh7 {[%clk 0:00:26.9]}
15. Qh5+ {[%clk 0:00:53.2]} 15... Kg8 {[%clk 0:00:24.9]} 16. Qxc5 {[%clk
0:00:54.1]} 16... Qg6 {[%clk 0:00:22.1]} 17. Kh2 {[%clk 0:00:47.3]} 17... Be6
{[%clk 0:00:19.9]} 18. Bf4 {[%clk 0:00:46.5]} 18... Rad8 {[%clk 0:00:19.4]} 19.
Rad1 {[%clk 0:00:45.8]} 19... Rxd1 {[%clk 0:00:17.7]} 20. Rxd1 {[%clk
0:00:46.7]} 20... Qf5 {[%clk 0:00:17.8]} 21. Qe3 {[%clk 0:00:33.4]} 21... f6
{[%clk 0:00:13.6]} 22. Qg3 {[%clk 0:00:33]} 22... Re7 {[%clk 0:00:10.3]} 23. Rd2
{[%clk 0:00:31.8]} 23... Qc5 {[%clk 0:00:09.8]} 24. Bxc7 {[%clk 0:00:28.4]}
24... Nd4 {[%clk 0:00:08.4]} 25. Bd6 {[%clk 0:00:27.3]} 25... Nf5 {[%clk
0:00:06.1]} 26. Bxe7 {[%clk 0:00:26.6]} 26... Qxe7 {[%clk 0:00:05.2]} 27. Qf4
{[%clk 0:00:15.9]} 27... a6 {[%clk 0:00:04.6]} 28. g4 {[%clk 0:00:15.7]} 28...
Nh4 {[%clk 0:00:03.9]} 29. Kg3 {[%clk 0:00:16]} 29... Ng6 {[%clk 0:00:04]} 30.
Qd6 {[%clk 0:00:15.8]} 30... Qxd6+ {[%clk 0:00:03.1]} 31. Rxd6 {[%clk
0:00:16.7]} 31... Kf7 {[%clk 0:00:04]} 32. f4 {[%clk 0:00:16.7]} 32... Bc4
{[%clk 0:00:03.4]} 33. b3 {[%clk 0:00:16.4]} 33... Bf1 {[%clk 0:00:02.7]} 34.
Rd1 {[%clk 0:00:11.3]} 34... Be2 {[%clk 0:00:02.2]} 35. Rd2 {[%clk 0:00:11.2]}
35... Bb5 {[%clk 0:00:02.4]} 36. c4 {[%clk 0:00:10.9]} 36... Bc6 {[%clk
0:00:02.7]} 37. Rd6 {[%clk 0:00:10.2]} 37... Ne7 {[%clk 0:00:02.7]} 38. f5
{[%clk 0:00:10]} 38... Be8 {[%clk 0:00:03]} 39. Rb6 {[%clk 0:00:09.6]} 39... Bc6
{[%clk 0:00:03.3]} 40. Kf4 {[%clk 0:00:09.3]} 40... Nc8 {[%clk 0:00:03.6]} 41.
Rb4 {[%clk 0:00:08.9]} 41... a5 {[%clk 0:00:04]} 42. Rb5 {[%clk 0:00:02.2]}
42... Bxb5 {[%clk 0:00:04]} 43. cxb5 {[%clk 0:00:03.1]} 43... Nb6 {[%clk
0:00:04.8]} 44. Ke4 {[%clk 0:00:02.4]} 44... Ke7 {[%clk 0:00:05.7]} 45. Kd4
{[%clk 0:00:02.6]} 45... Kd6 {[%clk 0:00:06.3]} 46. h4 {[%clk 0:00:02.6]} 46...
Nd7 {[%clk 0:00:07.1]} 47. g5 {[%clk 0:00:02.6]} 47... fxg5 {[%clk 0:00:07.2]}
48. hxg5 {[%clk 0:00:03.5]} 48... b6 {[%clk 0:00:07.7]} 49. a3 {[%clk
0:00:03.1]} 49... Nf8 {[%clk 0:00:06.8]} 50. b4 {[%clk 0:00:02.7]} 50... axb4
{[%clk 0:00:05.8]} 51. axb4 {[%clk 0:00:03.6]} 51... Nd7 {[%clk 0:00:06.1]} 52.
Ke4 {[%clk 0:00:03.4]} 52... Nb8 {[%clk 0:00:06.2]} 53. Kf4 {[%clk 0:00:02.9]}
53... Nd7 {[%clk 0:00:06.1]} 54. Ke4 {[%clk 0:00:02.3]} 54... Nf8 {[%clk
0:00:06]} 55. Kf4 {[%clk 0:00:01.9]} 55... Kd5 {[%clk 0:00:05.5]} 56. Kg4 {[%clk
0:00:01.7]} 56... Ke5 {[%clk 0:00:05.4]} 57. f6 {[%clk 0:00:01.2]} 57... g6
{[%clk 0:00:05.2]} 58. Kg3 {[%clk 0:00:01]} 58... Kf5 {[%clk 0:00:05.5]} 59. Kh4
{[%clk 0:00:01.1]} 59... Kf4 {[%clk 0:00:05.6]} 60. f7 {[%clk 0:00:01.7]} 60...
Kf5 {[%clk 0:00:05.5]} 61. Kh3 {[%clk 0:00:02.6]} 61... Kxg5 {[%clk 0:00:05.9]}
62. Kg3 {[%clk 0:00:02.1]} 62... Kf6 {[%clk 0:00:06.8]} 63. Kf4 {[%clk
0:00:02.4]} 63... Kxf7 {[%clk 0:00:07.7]} 64. Kg5 {[%clk 0:00:03.3]} 64... Ne6+
{[%clk 0:00:07.9]} 65. Kg4 {[%clk 0:00:03.1]} 65... Kf6 {[%clk 0:00:08.4]} 66.
Kf3 {[%clk 0:00:04]} 66... Kf5 {[%clk 0:00:08.7]} 67. Ke3 {[%clk 0:00:04]} 67...
g5 {[%clk 0:00:09.6]} 68. Kf3 {[%clk 0:00:03]} 68... g4+ {[%clk 0:00:10.5]} 69.
Kg3 {[%clk 0:00:03.9]} 69... Ng5 {[%clk 0:00:10.8]} 70. Kh4 {[%clk 0:00:03.7]}
70... Kf4 {[%clk 0:00:11.7]} 71. Kh5 {[%clk 0:00:03.7]} 71... g3 {[%clk
0:00:11.4]} 72. Kh4 {[%clk 0:00:04.6]} 72... g2 {[%clk 0:00:12.3]} 73. Kh5
{[%clk 0:00:04.6]} 73... g1=Q {[%clk 0:00:12.5]} 74. Kg6 {[%clk 0:00:05.5]}
74... Ne4+ {[%clk 0:00:12.2]} 0-1